Cogmind - Beta 14 @@@ ROGUE MODE // 2024.10.27 @ 12:05:09 Player: Kate+Gabe4evr Result: Destroyed by H-55 Commando with Gauss Rifle Performance ------------- Evolutions (2) 1000 Regions Visited (4) 800 Robots Destroyed (14) 70 Value Destroyed (254) 254 Prototype IDs (0) 0 Alien Tech Used (0) 0 Bonus (21) 21 TOTAL SCORE: 2145 Bonus ------- Follower Combat Kills 21 Cogmind --------- Core Integrity 0/550 Matter 290/300 Energy 99/100 System Corruption 3% Temperature Cool (0) Movement Core (50) Location -8/Materials Parts ------- > --- POWER (1) -------- (None) > --- PROPULSION (4) --- (None) > --- UTILITY (4) ------ Improved Signal Interpreter > --- WEAPON (2) ------- Heavy Flail > --- INVENTORY (5) ---- Ion Engine Small Storage Unit Mini Grenade Launcher Mining Laser Peak State ------------ > --- POWER ------------ Ion Engine > --- PROPULSION ------- Aluminum Leg Aluminum Leg > --- UTILITY ---------- Improved Terrain Scanner Improved Terrain Scanner > --- WEAPON ----------- Assault Rifle Assault Rifle > --- INVENTORY -------- Small Storage Unit [Rating: 11] Favorites ----------- Power Ion Engine Engine Ion Engine Propulsion Aluminum Leg Leg Aluminum Leg Utility Improved Terrain Scanner Device Improved Terrain Scanner Processor Improved Signal Interpreter Weapon Assault Rifle Ballistic Gun Assault Rifle Special Weapon Mining Laser Impact Weapon Heavy Flail Build | -11 -10 -10 -9 -8 ------- Run | Yrd Mat Min Mat Mat Slots Evolved 4 | . . . 2 2 Power . | . . . . . Propulsion 2 | . . . . 2 Utility 2 | . . . 2 . Weapon . | . . . . . Parts Attached 12 | 8 1 . . 3 Power 1 | 1 . . . . Engine 1 | 1 . . . . Core . | . . . . . Reactor . | . . . . . Propulsion 2 | 2 . . . . Treads . | . . . . . Leg 2 | 2 . . . . Wheel . | . . . . . Hover . | . . . . . Flight . | . . . . . Utility 4 | 2 . . . 2 Device 2 | 2 . . . . Storage . | . . . . . Processor 2 | . . . . 2 Hackware . | . . . . . Protection . | . . . . . Artifact . | . . . . . Weapon 5 | 3 1 . . 1 Energy Gun . | . . . . . Energy Cannon . | . . . . . Ballistic Gun 3 | 2 1 . . . Ballistic Cannon . | . . . . . Launcher . | . . . . . Special Weapon 1 | 1 . . . . Impact Weapon 1 | . . . . 1 Slashing Weapon . | . . . . . Piercing Weapon . | . . . . . Special Melee Weapon . | . . . . . Unidentified Prototypes . | . . . . . Parts Lost 7 | . 5 . 1 1 Power 1 | . 1 . . . Propulsion 2 | . 2 . . . Utility 2 | . 1 . . 1 Weapon 2 | . 1 . 1 . Highest Loss Streak 3 | . 3 . 1 1 To Critical Strikes . | . . . . . Average Slot Usage (%) 45 | . 83 28 20 14 Engine 3 | . 8 . . . Leg 10 | . 26 . . . Device 12 | . 19 14 11 5 Processor 3 | . . . . 8 Ballistic Gun 13 | . 25 14 9 . Peak Build Rating 11 | 11 11 4 4 6 Average Rating 7 | 7 8 4 3 4 On Entrance 4 | . 11 4 4 3 Naked Turns . | . . . . . Heaviest Build 11 | 11 11 3 3 3 Greatest Support 20 | 20 20 3 3 3 Greatest Overweight (x) 1 | . 1 . . . Average Overweight (x) . | . . . . . Largest Inventory Capacity 5 | 5 5 5 5 5 Average Capacity 5 | 5 5 5 5 5 Most Carried 4 | 3 3 3 3 4 Average Carried 1 | 1 3 3 3 3 Final Capacity 5 | 5 5 5 5 5 Final Carried 4 | 3 3 3 3 4 Class Distribution -------------------- 100% | Mutant Dominant Class ---------------- Mutant | -10/Materials Mutant | -10/Mines Mutant | -9/Materials Mutant | -8/Materials Resources | -11 -10 -10 -9 -8 ----------- Run | Yrd Mat Min Mat Mat Matter Collected 502 | 249 253 . . . Remotely . | . . . . . Salvage Created 375 | 72 230 . . 73 Parts 29 | 10 14 . . 5 Haulers Intercepted . | . . . . . Recyclers Shooed . | . . . . . Parts Field Recycled . | . . . . . Retrieved Matter . | . . . . . Parts Self-Destructed . | . . . . . Prevented . | . . . . . Kills | -11 -10 -10 -9 -8 ------- Run | Yrd Mat Min Mat Mat Combat Hostiles Destroyed 8 | . 8 . . . Guns 8 | . 8 . . . Classes Destroyed 4 | 1 2 . . 1 Tunneler 5 | 5 . . . . Recycler 1 | . . . . 1 Swarmer 3 | . 3 . . . Grunt 5 | . 5 . . . Best Kill Streak 4 | 2 4 . . 1 Combat Bots Only 4 | . 4 . . . Max Kills in Single Turn 1 | 1 1 . . 1 Gunslinging . | . . . . . Exploded . | . . . . . Melee . | . . . . . Uniques/NPCs Destroyed . | . . . . . Combat | -11 -10 -10 -9 -8 -------- Run | Yrd Mat Min Mat Mat Hostile Shots Fired 171 | . 106 . 19 46 Missed 62 | . 45 . 6 11 Damage Taken 1375 | . 637 5 131 602 Core 828 | . 190 5 80 553 Absorbed by Shields . | . . . . . Core Remaining (%) 67 | 100 . 22 80 . Volleys Fired 47 | 14 31 2 . . Largest 2 | 2 2 1 . . Hottest 100 | 100 40 20 . . Shots Fired 89 | 25 62 2 . . Gun 86 | 22 62 2 . . Cannon . | . . . . . Launcher . | . . . . . Special 3 | 3 . . . . Kinetic 86 | 22 62 2 . . Thermal 3 | 3 . . . . Explosive . | . . . . . Electromagnetic . | . . . . . Robot Hit Streak 10 | 5 10 2 . . Robot Miss Streak 5 | 2 5 1 . . Penetration Max . | . . . . . Secondary Targets . | . . . . . Shots Hit Robots 54 | 13 40 1 . . Core Hits 18 | 5 12 . . 1 Critical Kills . | . . . . . Critical Parts Destroyed . | . . . . . Critical Strikes . | . . . . . Melee Attacks . | . . . . . Impact . | . . . . . Slashing . | . . . . . Piercing . | . . . . . Sneak Attacks . | . . . . . Combat Hostiles . | . . . . . Follow-up Attacks . | . . . . . Damage Inflicted 784 | 158 546 24 9 47 Guns 706 | 158 535 13 . . Cannons . | . . . . . Explosions . | . . . . . Melee . | . . . . . Ramming 78 | . 11 11 9 47 Kinetic 706 | 158 535 13 . . Thermal . | . . . . . Explosive . | . . . . . Electromagnetic . | . . . . . Impact . | . . . . . Slashing . | . . . . . Piercing . | . . . . . Highest Corruption 3 | . . . . 3 Average Corruption 3 | . . . . 3 Corruption Purged . | . . . . . Corruption Blocked . | . . . . . Effects 2 | . . . . 2 Energy Discharges 1 | . . . . 1 Data Loss (major) 1 | . . . . 1 Overload Shots . | . . . . . Overflow Damage . | . . . . . Projectiles . | . . . . . Explosions . | . . . . . Melee . | . . . . . Knockbacks . | . . . . . Impact . | . . . . . Kinetic . | . . . . . Secondary . | . . . . . Self-Inflicted Damage 29 | . . 5 3 21 Shots . | . . . . . Rammed 16 | . . 2 5 9 Targets Rammed 22 | 1 5 2 5 9 Kicked 6 | 1 5 . . . Crushed . | . . . . . Highest Temperature 22 | 22 5 . . . Average Temperature 8 | 11 2 . . . Received Heat Transfer 528 | . 276 . 18 234 Siege Activations . | . . . . . Robots Corrupted . | . . . . . Combat Hostiles . | . . . . . Parts Fried . | . . . . . Impact Corruptions . | . . . . . Robots Melted . | . . . . . Combat Hostiles . | . . . . . Parts Melted . | . . . . . Heat Transferred . | . . . . . Parts Sabotaged . | . . . . . Parts Stolen . | . . . . . Parts Stripped . | . . . . . Power Chain Reactions . | . . . . . Alert | -11 -10 -10 -9 -8 ------- Run | Yrd Mat Min Mat Mat Peak Influence 346 | 20 346 123 295 239 Initial 124 | . . 123 47 124 Average 20 | 1 159 123 133 174 Maximum Alert Level 1 | . 1 . 1 1 Low Security (%) 96 | 100 49 100 78 78 Level 1 3 | . 50 . 21 21 Level 2 . | . . . . . Level 3 . | . . . . . Level 4 . | . . . . . Level 5 . | . . . . . High Security . | . . . . . Max Security . | . . . . . Squads Dispatched 3 | . 2 . . 1 Investigation 3 | . 2 . . 1 Extermination . | . . . . . Reinforcement . | . . . . . Assault . | . . . . . Garrison . | . . . . . Intercept . | . . . . . Searches Triggered . | . . . . . Construction Impeded . | . . . . . Haulers Reinforced . | . . . . . Active Scanning Responses . | . . . . . Cargo Convoy Interrupts . | . . . . . Stealth | -11 -10 -10 -9 -8 --------- Run | Yrd Mat Min Mat Mat Distress Signals 5 | . 3 . 2 . Communications Jammed . | . . . . . Distress Signals . | . . . . . Times Spotted 48 | . 21 . 15 12 Peak Tracking Total 8 | . 6 . 8 8 Tactical Retreats 8 | . 3 . 2 3 Traps | -11 -10 -10 -9 -8 ------- Run | Yrd Mat Min Mat Mat Traps Triggered 4 | . 1 . . 3 Indirectly . | . . . . . Trap Hack Attempts . | . . . . . Triggered . | . . . . . Disarmed . | . . . . . Reprogrammed . | . . . . . Reused . | . . . . . Traps Extracted . | . . . . . Installed . | . . . . . Triggered . | . . . . . Machines | -11 -10 -10 -9 -8 ---------- Run | Yrd Mat Min Mat Mat Machines Disabled . | . . . . . Max in Single Turn . | . . . . . Machines Repaired . | . . . . . Machines Dismantled . | . . . . . Machines Sabotaged . | . . . . . Overloaded Fab Kills . | . . . . . Hacking | -11 -10 -10 -9 -8 --------- Run | Yrd Mat Min Mat Mat Machines Accessed 3 | . 2 . 1 . Terminals 2 | . 1 . 1 . Fabricators . | . . . . . Repair Stations . | . . . . . Recycling Units 1 | . 1 . . . Scanalyzers . | . . . . . Garrison Access . | . . . . . Total Hacks 8 | . 7 . 1 . Successful 6 | . 5 . 1 . Failed 2 | . 2 . . . Catastrophic . | . . . . . Database Lockouts . | . . . . . Manual 7 | . 7 . . . Terminals 2 | . 1 . 1 . Fabricators . | . . . . . Repair Stations . | . . . . . Recycling Units 6 | . 6 . . . Scanalyzers . | . . . . . Garrison Access . | . . . . . Terminal Hacks 1 | . . . 1 . Record 1 | . . . 1 . Fabricator Hacks . | . . . . . Repair Station Hacks . | . . . . . Recycling Unit Hacks . | . . . . . Scanalyzer . | . . . . . Garrison Access Hacks . | . . . . . Unauthorized Hacks 1 | . 1 . . . Terminals 1 | . 1 . . . Track 1 | . 1 . . . Fabricators . | . . . . . Repair Stations . | . . . . . Recycling Units . | . . . . . Scanalyzers . | . . . . . Garrison Access . | . . . . . Data Cores Recovered . | . . . . . Used . | . . . . . Hacking Detections 1 | . 1 . . . Full Trace Events 1 | . 1 . . . Feedback Events . | . . . . . Feedback Blocked . | . . . . . Robot Schematics Acquired . | . . . . . Robots Built . | . . . . . Authchips . | . . . . . Time . | . . . . . Total Robot Build Rating . | . . . . . Part Schematics Acquired . | . . . . . Parts Built . | . . . . . Authchips . | . . . . . Time . | . . . . . Total Part Build Rating . | . . . . . Parts Repaired . | . . . . . Time . | . . . . . Parts Recycled . | . . . . . Recycled Matter . | . . . . . Retrieved Matter . | . . . . . Retrieved Components . | . . . . . Parts Scanalyzed . | . . . . . Part Schematics Acquired . | . . . . . Parts Damaged . | . . . . . Bothacking | -11 -10 -10 -9 -8 ------------ Run | Yrd Mat Min Mat Mat Used RIF Installer . | . . . . . Robots Hacked . | . . . . . Non-combat . | . . . . . Combat . | . . . . . Robot Hacks Applied . | . . . . . Relay Couplers Released . | . . . . . Fabnet Peak Effective % . | . . . . . Robots Rewired . | . . . . . Allies Hacked . | . . . . . Hacks Repelled . | . . . . . Allies | -11 -10 -10 -9 -8 -------- Run | Yrd Mat Min Mat Mat Total Allies 2 | . . 2 . . Largest Group 2 | . . 2 2 . Highest-Rated Group 45 | . . 45 45 . Highest-Rated Ally 31 | . . 31 31 . Total Orders . | . . . . . Ally Attacks 7 | . . . 7 . Total Damage 120 | . . . 120 . Kills 4 | . . . 4 . Allies Corrupted . | . . . . . Allies Melted . | . . . . . Intel | -11 -10 -10 -9 -8 ------- Run | Yrd Mat Min Mat Mat Robot Analysis Total . | . . . . . Derelict Logs Recovered . | . . . . . Drone Launches . | . . . . . Drone Recoveries . | . . . . . Exploration | -11 -10 -10 -9 -8 ------------- Run | Yrd Mat Min Mat Mat Turns Passed 4887 | 4280 257 81 60 209 Spaces Moved 2239 | 1508 123 112 110 386 Core 635 | 12 15 112 110 386 Treads . | . . . . . Legs 1604 | 1496 108 . . . Wheels . | . . . . . Hover . | . . . . . Flight . | . . . . . Fastest Speed 50 | 50 50 50 50 50 Average Speed 100 | 119 111 50 50 50 Slowest Speed 120 | 120 120 50 50 50 Overloaded Moves . | . . . . . Propulsion Burnouts . | . . . . . Robots Hopped . | . . . . . Cave-ins Triggered . | . . . . . Exploration Rate (%) 40 | 71 31 31 21 47 Regions Visited 4 Branch Regions 1 Pre-discovered Areas . | . . . . . Known Exits Taken . | . . . . . Unknown Exits Taken 4 | 1 1 1 1 . Scrap Searched . | . . . . . Spaces Dug 3 | 3 . . . . Terrain Destroyed 3 | 3 . . . . Melee . | . . . . . Projectile 3 | 3 . . . . AOE . | . . . . . Terrain Rammed . | . . . . . Walls Destroyed . | . . . . . Machines Disabled . | . . . . . Actions | -11 -10 -10 -9 -8 --------- Run | Yrd Mat Min Mat Mat Total 4777 | 3951 178 134 114 400 Wait 2457 | 2418 19 19 . 1 Move 2235 | 1507 122 111 109 386 Hop . | . . . . . Pick Up 4 | 3 . . . 1 Fast Attach 10 | 7 . . . 3 Attach . | . . . . . Detach . | . . . . . Swap 2 | 1 1 . . . Drop . | . . . . . Fire 47 | 14 31 2 . . Melee . | . . . . . Ram 16 | . . 2 5 9 Kick 6 | 1 5 . . . Crush . | . . . . . Escape Stasis . | . . . . . Rewire . | . . . . . Trap . | . . . . . Miscellaneous . | . . . . . Route ------- -11/Scrapyard -10/Materials -10/Mines -9/Materials -8/Materials (discovered 2 exits: *Fac / [*Sto]) History --------- Turn | Location | Event 3 | -11/Scrapyard | Discovered new exit (range 15) 4281 | -11/Scrapyard | Entered Materials 4282 | -10/Materials | Build established: Mutant 4457 | -10/Materials | Discovered new exit (range 15) 4517 | -10/Materials | Core integrity fell below 50% 4538 | -10/Materials | Entered Mines 4555 | -10/Mines | Found a hidden stash of uninstalled traps 4562 | -10/Mines | Lost 3 parts (2n1w) 4599 | -10/Mines | Discovered new exit (range 3) 4619 | -10/Mines | Entered Materials 4619 | -9/Materials | Accompanied by 2 allies 4619 | -9/Materials | Evolved 2 slots: Utility x2 4624 | -9/Materials | Led the pair of lost Derelicts to an unsafe place 4678 | -9/Materials | Discovered new exit (range 3) 4679 | -9/Materials | Entered another Materials area 4679 | -8/Materials | Evolved 2 slots: Propulsion x2 4679 | -8/Materials | Discovered new exit (range 15) 4736 | -8/Materials | Discovered new exit (range 5) 4738 | -8/Materials | Identified exit to Factory 4852 | -8/Materials | Core integrity fell below 50% 4877 | -8/Materials | Core integrity fell below 20% 4888 | -8/Materials | Destroyed by H-55 Commando with Gauss Rifle Last Messages --------------- 04756_ L-31 Rogue unfolds itself. 04756_ G-47 Trooper unfolds itself. 04761_ Slammed into G-47 Trooper. 04766_ K-01 Serf collects debris. 04795_ Imp. Terrain Scanner destroyed. 04811_ K-01 Serf collects debris. 04815_ System corrupted: Substantial component data lost. 04815_ Acquired Imp. Signal Interpreter. 04821_ K-01 Serf collects debris. 04846_ System corrupted: Energy discharge (-34). 04849_ Slammed into L-31 Rogue. 04850_ Imp. Signal Interpreter severed. 04850_ Slammed into L-31 Rogue. 04851_ Slammed into G-47 Trooper. 04855_ Critical hit (Burn: +37). 04855_ Slammed into G-47 Trooper. 04863_ Penetrated by Slug. 04870_ Acquired Hvy. Flail. 04877_ Critical hit (Burn: +37). 04885_ Penetrated by Slug. Map ----- +----------------------------------------------------+ | ?????????????????????# ############ #????? | | ?????????????????????# #??????????#####????? | | ?????????????????????# #???????????????????? | | #######??????????????# #???????????????????? | | # #??????????????# #???????????????????? | | # """#??????????????# #???????????????????? | | # """#??###########?# #???????????????????? | | # """#### T ] *#?#%#???????????????????? | | # """# # #?#%#???????????????????? | | # """# # """ #?#%#?????""????????????# | | # + # """ **! ###%##??""""????????????# | | ###+### # """ *!! + # """" #?????????# | | # # # """ *!! ### + #?????????# | | # =# # """ #?# # """" #?????????# | | # # # #?# #??""""????????????+ | | # """ + ##+########## #????""????????????# | | # """ # #??????????????????# | | # """ # #????????????????? # | | # ##### #??????????????????# | | #######???# #??????????????????# | | ??????????# gh #??????????????????# | | ??????????# g #??????????####????# | | ?????###### t #??????????#T"#????# | | ?????# ############ "###### | | ?????# l | | ?????# @ u | | ????####+## ##+#### ################### | | ???# ###### ## #?????????????????# | | ???# #????# ## #?????????????????# | | ???# """ #????# ## #?????????????????# | | ???# """ #????# ! ## #??????????#####??# | | ???# """ #????# ## #??????????# ?# | | ???# #????# ## #??????????# ?# | | ???########????# ## #??????????#!!! ! # | | ???????????????# ## #??????????#!!! # | | ???????????????# ## #??????????#!!! + | | ???????????????####### #??????????# # | | ?????????????????????# #??????????######## | | ?????????????????????# ??? | | ?????????????????????# ???? ##### | | ?????????????????????? ??????????????????# | | ???????????????????????????????????????????# | | ???????????????????????????????????????????# | | ???????????????????????????????????????????# | | ?????????????????????????????????????????"?+ | | ???????????????????????????????????????????# | | ????????????????????????????????????????"??# | | ???????????????????????????????????????????# | | ???????????????????????????????????????????# | | ???????????????????????????????????????????# | +----------------------------------------------------+ Best States ------------- Heat Dissipation 31 Energy Generation 10 Energy Capacity 250 Matter Stores 300 Matter Capacity 300 Sight Range 16 Terrain Scan Range 16 Terrain Scan Density 10 Evasion (%) 55 Item Schematics ----------------- None Robot Schematics ------------------ None Fabricated ------------ Nothing Alien Tech Used ----------------- None Achievements -------------- None Challenges ------------ None Game ------ Seed TrackerGrapheneRegenerator Manual? 0 Play Time 00:14:33 Cumulative 50.9 hours Start 2024.10.27 @ 11:50:08 End 2024.10.27 @ 12:05:09 Sessions 1 Manual Loads 0 Difficulty Rogue Special Mode None Game No. 89 Rogue 89 Adventurer 0 Explorer 0 Win Type - Total 1 Types 1/0/0/0/0/0/0/0/0 Lore% 36 Gallery% 48 Achievement% 41 Wizard Run 0 Options --------- Layout 0 ASCII 0 Keyboard 1 Movement Numpad Keybinds 0 Fullscreen 2 Font 24/Terminus Map View 76x50 Zoom Use 0% Tactical HUD 1 Map Filters NONE Filters NONE Steam 1 RUN: db25b586-aafa-4023-8741-27fdd43e0b80